[Event "KNSB Bekerfinale"]
[Site "Haarlem, Netherlands"]
[Date "????.??.??"]
[Round "3.7"]
[White "Bosman, Michiel"]
[Black "Grutter, Tim"]
[Result "0-1"]
[TimeControl "100 minutes + increment 10 seconds"]
[WhiteTitle "IM"]
[BlackTitle "FM"]
[WhiteFideId "1000721"]
[BlackFideId "1057472"]
[WhiteElo "2340"]
[BlackElo "2326"]

1. d4 {[%clk 00:03:03]} Nf6 {[%clk 00:03:03]} {[%emt 00:00:01]} 2. c4 {[%clk
00:03:04]} {[%emt 00:00:01]} g6 {[%clk 00:03:05]} 3. Nc3 {[%clk 00:03:05]}
{[%emt 00:00:01]} Bg7 {[%clk 00:03:06]} 4. e4 {[%clk 00:03:06]} {[%emt
00:00:01]} d6 {[%clk 00:03:07]} 5. Be2 {[%clk 00:03:06]} {[%emt 00:00:01]} O-O
{[%clk 00:03:05]} {[%emt 00:00:05]} 6. Be3 {[%clk 00:03:07]} {[%emt 00:00:01]}
Nc6 {[%clk 00:03:06]} 7. Nf3 {[%clk 00:03:04]} {[%emt 00:00:06]} Bg4 {[%clk
00:02:42]} {[%emt 00:00:25]} 8. d5 {[%clk 00:02:17]} {[%emt 00:00:49]} Bxf3
{[%clk 00:02:31]} {[%emt 00:00:13]} 9. Bxf3 {[%clk 00:01:41]} {[%emt 00:00:39]}
Ne5 {[%clk 00:02:11]} {[%emt 00:00:22]} 10. Be2 {[%clk 00:01:42]} {[%emt
00:00:01]} e6 {[%clk 00:02:08]} {[%emt 00:00:04]} 11. f4 {[%clk 00:01:35]}
{[%emt 00:00:08]} Ned7 {[%clk 00:02:09]} {[%emt 00:00:02]} 12. dxe6 {[%clk
00:01:33]} {[%emt 00:00:04]} fxe6 {[%clk 00:02:10]} {[%emt 00:00:01]} 13. O-O
{[%clk 00:01:33]} {[%emt 00:00:03]} Qe7 {[%clk 00:01:46]} {[%emt 00:00:25]} 14.
Qc2 {[%clk 00:01:28]} {[%emt 00:00:07]} a6 {[%clk 00:01:30]} {[%emt 00:00:19]}
15. Rad1 {[%clk 00:01:10]} {[%emt 00:00:19]} Rad8 {[%clk 00:01:06]} {[%emt
00:00:26]} 16. Kh1 {[%clk 00:01:09]} {[%emt 00:00:03]} Ne8 {[%clk 00:00:54]}
{[%emt 00:00:14]} 17. Rf2 {[%clk 00:00:53]} {[%emt 00:00:19]} Nb8 {[%clk
00:00:51]} {[%emt 00:00:05]} 18. b3 {[%clk 00:00:50]} {[%emt 00:00:05]} Nc6
{[%clk 00:00:51]} {[%emt 00:00:02]} 19. a3 {[%clk 00:00:47]} {[%emt 00:00:05]}
Qf6 {[%clk 00:00:47]} {[%emt 00:00:07]} 20. Rd3 {[%clk 00:00:39]} {[%emt
00:00:10]} Qe7 {[%clk 00:00:31]} {[%emt 00:00:18]} 21. b4 {[%clk 00:00:40]}
{[%emt 00:00:01]} e5 {[%clk 00:00:15]} {[%emt 00:00:18]} 22. f5 {[%clk
00:00:37]} {[%emt 00:00:04]} Nd4 {[%clk 00:00:13]} {[%emt 00:00:04]} 23. Nd5
{[%clk 00:00:21]} {[%emt 00:00:18]} Qh4 {[%clk 00:00:09]} {[%emt 00:00:06]} 24.
Qd2 {[%clk 00:00:19]} {[%emt 00:00:04]} h6 {[%clk 00:00:05]} {[%emt 00:00:06]}
25. Bf3 {[%clk 00:00:19]} {[%emt 00:00:02]} c6 {[%clk 00:00:04]} {[%emt
00:00:02]} 26. Bxd4 {[%clk 00:00:18]} {[%emt 00:00:03]} cxd5 {[%clk 00:00:04]}
{[%emt 00:00:02]} 27. g3 {[%clk 00:00:20]} Qe7 {[%clk 00:00:03]} {[%emt
00:00:03]} 28. Bb6 {[%clk 00:00:21]} {[%emt 00:00:01]} Rc8 {[%clk 00:00:03]}
{[%emt 00:00:02]} 29. cxd5 {[%clk 00:00:21]} {[%emt 00:00:02]} Nf6 {[%clk
00:00:04]} {[%emt 00:00:01]} 30. Kg2 {[%clk 00:00:22]} {[%emt 00:00:01]} gxf5
{[%clk 00:00:05]} {[%emt 00:00:01]} 31. Qe2 {[%clk 00:00:21]} {[%emt 00:00:03]}
fxe4 {[%clk 00:00:05]} {[%emt 00:00:01]} 32. Bxe4 {[%clk 00:00:22]} Qd7 {[%clk
00:00:05]} {[%emt 00:00:02]} 33. Bf5 {[%clk 00:00:23]} {[%emt 00:00:02]} Qb5
{[%clk 00:00:05]} {[%emt 00:00:02]} 34. Be6+ {[%clk 00:00:24]} {[%emt
00:00:01]} Kh8 {[%clk 00:00:05]} {[%emt 00:00:01]} 35. Be3 {[%clk 00:00:25]}
Rce8 {[%clk 00:00:05]} {[%emt 00:00:03]} 36. Qd2 {[%clk 00:00:26]} {[%emt
00:00:01]} Ne4 {[%clk 00:00:05]} {[%emt 00:00:02]} 37. Rxf8+ {[%clk 00:00:26]}
{[%emt 00:00:01]} Rxf8 {[%clk 00:00:07]} {[%emt 00:00:01]} 38. Qd1 {[%clk
00:00:27]} Qc4 {[%clk 00:00:06]} {[%emt 00:00:03]} 39. h3 {[%clk 00:00:21]}
{[%emt 00:00:08]} Nc3 {[%clk 00:00:07]} 40. Qd2 {[%clk 00:00:22]} {[%emt
00:00:02]} Qe4+ {[%clk 00:00:08]} 41. Kh2 {[%clk 00:00:23]} Rf1 {[%clk
00:00:07]} {[%emt 00:00:02]} 42. Bg1 {[%clk 00:00:22]} {[%emt 00:00:04]} Ne2
{[%clk 00:00:07]} {[%emt 00:00:03]} 43. Qe3 {[%clk 00:00:19]} {[%emt 00:00:05]}
Qxe3 {[%clk 00:00:04]} {[%emt 00:00:05]} 44. Bxe3 {[%clk 00:00:19]} {[%emt
00:00:02]} e4 {[%clk 00:00:04]} {[%emt 00:00:02]} 45. Rd2 {[%clk 00:00:19]}
{[%emt 00:00:02]} Nc3 {[%clk 00:00:04]} {[%emt 00:00:02]} 46. Bc8 {[%clk
00:00:17]} {[%emt 00:00:03]} Be5 {[%clk 00:00:04]} {[%emt 00:00:03]} 47. Bxb7
{[%clk 00:00:18]} {[%emt 00:00:01]} Rf3 {[%clk 00:00:05]} 48. Bxh6 {[%clk
00:00:17]} {[%emt 00:00:02]} Rxg3 {[%clk 00:00:05]} {[%emt 00:00:02]} 49. Rg2
{[%clk 00:00:15]} {[%emt 00:00:04]} Rg6+ {[%clk 00:00:05]} {[%emt 00:00:02]} 50.
Kh1 {[%clk 00:00:16]} {[%emt 00:00:01]} Rxh6 {[%clk 00:00:06]} 51. Bxa6 {[%clk
00:00:16]} {[%emt 00:00:02]} Rxh3+ {[%clk 00:00:07]} {[%emt 00:00:01]} 52. Kg1
{[%clk 00:00:18]} Bd4+ {[%clk 00:00:09]} 53. Kf1 {[%clk 00:00:19]} Rh1+ {[%clk
00:00:10]} 0-1

[Event "KNSB Bekerfinale"]
[Site "Haarlem, Netherlands"]
[Date "????.??.??"]
[Round "3.8"]
[White "Boeren, Jurriaan"]
[Black "De Jong, Jan-Willem"]
[Result "0-1"]
[TimeControl "100 minutes + increment 10 seconds"]
[BlackTitle "IM"]
[WhiteFideId "1067478"]
[BlackFideId "1008641"]
[WhiteElo "2178"]
[BlackElo "2398"]

1. e4 {[%clk 00:03:03]} e5 {[%clk 00:03:03]} {[%emt 00:00:01]} 2. Nf3 {[%clk
00:03:04]} Nc6 {[%clk 00:03:04]} {[%emt 00:00:02]} 3. Bb5 {[%clk 00:03:05]} a6
{[%clk 00:03:05]} {[%emt 00:00:01]} 4. Ba4 {[%clk 00:03:06]} Nf6 {[%clk
00:03:05]} {[%emt 00:00:01]} 5. O-O {[%clk 00:03:07]} {[%emt 00:00:02]} d6
{[%clk 00:03:02]} {[%emt 00:00:05]} 6. Re1 {[%clk 00:02:14]} {[%emt 00:00:55]}
Bd7 {[%clk 00:03:01]} {[%emt 00:00:03]} 7. c3 {[%clk 00:02:14]} {[%emt
00:00:03]} g6 {[%clk 00:03:01]} {[%emt 00:00:01]} 8. d4 {[%clk 00:02:11]}
{[%emt 00:00:05]} Bg7 {[%clk 00:03:02]} {[%emt 00:00:01]} 9. h3 {[%clk
00:02:05]} {[%emt 00:00:08]} O-O {[%clk 00:03:02]} {[%emt 00:00:02]} 10. Be3
{[%clk 00:02:03]} {[%emt 00:00:04]} Nxe4 {[%clk 00:02:23]} {[%emt 00:00:40]} 11.
Bc2 {[%clk 00:01:26]} {[%emt 00:00:39]} exd4 {[%clk 00:02:08]} {[%emt
00:00:17]} 12. Nxd4 {[%clk 00:01:20]} {[%emt 00:00:08]} Re8 {[%clk 00:02:07]}
{[%emt 00:00:03]} 13. Qf3 {[%clk 00:01:04]} {[%emt 00:00:18]} Nc5 {[%clk
00:01:47]} {[%emt 00:00:22]} 14. Nd2 {[%clk 00:00:45]} {[%emt 00:00:21]} Qh4
{[%clk 00:01:18]} {[%emt 00:00:31]} 15. b4 {[%clk 00:00:34]} {[%emt 00:00:14]}
Ne5 {[%clk 00:01:10]} {[%emt 00:00:10]} 16. Qg3 {[%clk 00:00:17]} {[%emt
00:00:19]} Qxg3 {[%clk 00:01:06]} {[%emt 00:00:06]} 17. fxg3 {[%clk 00:00:18]}
{[%emt 00:00:01]} Ncd3 {[%clk 00:00:52]} {[%emt 00:00:16]} 18. Re2 {[%clk
00:00:15]} {[%emt 00:00:05]} c5 {[%clk 00:00:51]} {[%emt 00:00:03]} 19. bxc5
{[%clk 00:00:10]} {[%emt 00:00:07]} dxc5 {[%clk 00:00:45]} {[%emt 00:00:08]} 20.
N4f3 {[%clk 00:00:07]} {[%emt 00:00:05]} c4 {[%clk 00:00:23]} {[%emt 00:00:25]}
21. Nd4 {[%clk 00:00:05]} {[%emt 00:00:04]} b5 {[%clk 00:00:22]} {[%emt
00:00:03]} 22. a4 {[%clk 00:00:04]} {[%emt 00:00:03]} b4 {[%clk 00:00:23]}
{[%emt 00:00:01]} 0-1